bitfinex/quotes_ETHUSD_20260207
["timestamp","ask_amount","ask_price","bid_price","bid_amount"]
[1770426628514,1.22452978,2041.6,2041.0,0.041511]
[1770426629020,1.22452978,2041.6,2040.8,3.18870993]
[1770426629206,1.22452978,2041.6,2041.0,0.041511]
[1770426629514,0.67692163,2041.5,2041.0,0.041511]
[1770426630305,1.22452978,2041.6,2041.0,0.041511]
[1770426630503,1.22452978,2041.6,2041.0,0.09050658]
[1770426631234,1.22440983,2041.8,2041.3,0.041511]
[1770426631534,1.2239902,2042.5,2042.0,0.041511]
[1770426631709,0.64473975,2042.4,2042.0,0.041511]
[1770426632459,1.2239902,2042.5,2042.0,0.041511]
[1770426633040,4.66024243,2042.5,2041.3,3.23022093]
[1770426633206,3.77422253,2042.4,2041.2,0.001]
[1770426633617,3.77422253,2042.4,2041.4,0.041511]
[1770426634936,1.22411007,2042.3,2041.4,0.041511]
[1770426635230,0.98947729,2042.2,2041.4,0.041511]
[1770426637416,1.22422995,2042.1,2041.4,0.041511]
[1770426638846,0.002,2042.4,2041.7,3.30481393]
[1770426639031,1.22609105,2042.4,2041.7,0.041511]
[1770426640046,0.002,2042.4,2041.7,0.041511]
[1770426640206,0.64716372,2042.4,2041.7,0.041511]
[1770426641057,0.64716372,2042.4,2041.7,1.26598061]
[1770426641354,0.64716372,2042.4,2041.7,0.041511]
[1770426643260,1.22411007,2042.3,2041.7,0.041511]
[1770426643457,1.22411007,2042.3,2041.7,1.26595747]
[1770426643754,1.22411007,2042.3,2041.8,0.94273746]
[1770426645456,0.002,2042.4,2041.8,0.94273746]
[1770426645856,0.002,2042.1,2041.8,0.94273746]
[1770426646051,0.002,2042.1,2041.8,4.20604039]
[1770426646940,0.002,2042.1,2042.0,0.041511]
[1770426647146,0.002,2042.4,2042.0,0.041511]
[1770426647348,0.002,2042.4,2042.0,1.26577381]
[1770426647663,0.002,2042.4,2042.0,2.30269279]
[1770426647868,0.002,2042.4,2042.0,5.56599572]
[1770426648743,0.002,2042.4,2042.0,1.03691898]
[1770426648964,0.002,2042.4,2041.4,3.30481393]
[1770426649168,0.002,2042.4,2041.4,4.52942224]
[1770426650079,0.002,2042.4,2041.4,3.30481393]
[1770426650681,3.19245529,2042.4,2041.3,0.001]
[1770426650857,3.19045529,2042.2,2041.3,0.001]
[1770426651755,1.22422995,2042.1,2041.3,0.001]
[1770426652179,3.29285529,2042.0,2041.0,0.001]
[1770426652458,3.29285529,2041.8,2041.0,0.001]
[1770426652757,3.19045529,2041.6,2041.0,0.001]
[1770426653286,0.36186131,2041.7,2040.3,0.041511]
[1770426653287,3.29285529,2041.5,2040.3,0.041511]
[1770426653459,3.29285529,2041.1,2039.7,1.22561878]
[1770426653786,3.19045529,2040.9,2039.7,1.22561878]
[1770426653961,0.4415345,2040.8,2039.6,4.48899019]
[1770426654165,0.4415345,2040.8,2039.5,4.94456495]
[1770426654166,3.63198979,2040.8,2039.5,0.041511]
[1770426654480,3.29285529,2040.7,2039.5,0.041511]
[1770426654686,3.19045529,2040.5,2039.5,0.041511]
[1770426655868,1.22524995,2040.4,2039.5,0.041511]
[1770426656097,0.9316705,2040.3,2039.5,0.041511]
[1770426656822,4.12212579,2040.3,2039.2,0.041511]
[1770426657094,3.19045529,2040.2,2039.2,0.041511]
[1770426657997,1.22543012,2040.1,2039.2,0.041511]
[1770426658193,1.22540458,2040.2,2039.6,0.041511]
[1770426658371,1.22535195,2040.3,2039.9,0.041511]
[1770426659107,1.22535195,2040.3,2039.7,0.001]
[1770426659797,8.0916953,2040.5,2039.7,0.001]
[1770426659978,3.19045529,2040.4,2039.7,0.001]
[1770426660177,0.80916953,2040.3,2039.5,0.001]
[1770426660382,3.99962482,2040.3,2039.5,0.001]
[1770426660688,0.80916953,2040.3,2039.6,0.041511]
[1770426661003,4.90124001,2040.5,2039.9,0.041511]
[1770426661380,1.22510515,2040.7,2039.9,0.041511]
[1770426661599,1.22482974,2041.2,2040.2,0.041511]
[1770426661770,1.22488975,2041.0,2040.2,0.041511]
[1770426662100,1.22487721,2041.1,2040.2,1.2668802]
[1770426662283,1.22487721,2041.1,2040.2,0.041511]
[1770426663300,1.22487721,2041.1,2040.2,4.53018155]
[1770426663497,1.22470974,2041.3,2040.5,0.041511]
[1770426663802,4.8981379,2041.6,2040.5,0.041511]
[1770426663998,0.96749843,2041.5,2040.5,1.71968296]
[1770426664376,0.96749843,2041.5,2040.5,0.49451488]
[1770426664575,0.96749843,2041.5,2040.5,1.71970262]
[1770426665602,0.96749843,2041.5,2040.5,5.09354302]
[1770426666184,1.22464975,2041.4,2040.8,0.041511]
[1770426666883,1.9337074,2041.4,2040.5,0.45300388]
[1770426667083,3.83796436,2041.3,2039.9,4.64088324]
[1770426667305,3.83796436,2041.3,2040.0,1.22548213]
[1770426667602,3.83796436,2041.3,2040.0,1.22546346]
[1770426667897,3.60439406,2041.3,2040.2,1.26685717]
[1770426668103,3.60439406,2041.3,2040.2,0.041511]
[1770426668303,0.1024,2041.1,2040.2,1.88375232]
[1770426668598,0.1024,2041.1,2040.2,0.65838785]
[1770426668976,0.1024,2041.1,2039.9,3.4153514]
[1770426669373,0.1024,2041.1,2039.9,4.64089258]
[1770426669604,0.1024,2041.1,2040.0,1.22548626]
[1770426670303,1.22488975,2041.0,2040.2,0.041511]
[1770426670680,1.22486539,2041.1,2040.2,3.4823795]
[1770426670888,1.22486539,2041.1,2040.5,0.041511]
[1770426671215,1.22486539,2041.1,2040.3,0.38974895]
[1770426672325,4.89931899,2041.3,2040.3,1.61502032]
[1770426672514,1.22470974,2041.3,2040.6,0.041511]
[1770426672714,1.22465641,2041.4,2040.9,0.041511]
[1770426673024,1.8369592,2041.4,2040.9,0.041511]
[1770426673196,1.8369592,2041.4,2040.6,3.4823795]
[1770426673524,1.22458656,2041.6,2040.6,3.4823795]
[1770426674531,1.22458656,2041.6,2040.6,0.041511]
[1770426674709,3.26665284,2041.5,2040.3,0.041511]
[1770426675502,3.26665284,2041.5,2040.3,1.26679033]
[1770426676415,1.22464975,2041.4,2040.3,1.26679033]
[1770426676592,0.93899016,2041.3,2040.4,0.61681697]
[1770426677800,0.93899016,2041.3,2040.1,0.001]
[1770426677801,3.36905284,2041.2,2040.1,0.001]
[1770426678211,3.36905284,2041.2,2040.1,1.22637192]
[1770426678412,1.22476974,2041.2,2040.5,0.041511]
[1770426679800,1.22458976,2041.6,2040.8,3.4823795]
[1770426680096,1.22458976,2041.6,2040.9,0.34823795]
[1770426680508,1.54970878,2041.8,2041.1,0.041511]
[1770426680920,1.54970878,2041.8,2040.8,3.4408685]
[1770426681115,1.54970878,2041.8,2040.8,1.26651903]
[1770426681423,1.54970878,2041.8,2040.5,3.4823795]
[1770426681623,3.26665284,2041.6,2040.3,1.22530998]
[1770426682120,0.1024,2041.5,2040.3,1.22530618]
[1770426682421,1.22464975,2041.4,2040.3,1.22530618]
[1770426682723,1.22464975,2041.4,2040.2,1.26683743]
[1770426682894,1.22464975,2041.4,2040.5,0.041511]
[1770426683095,0.62256488,2041.3,2040.5,0.041511]
[1770426684021,0.62256488,2041.3,2040.2,4.70774115]
[1770426684317,0.62256488,2041.3,2040.2,0.041511]
[1770426684524,1.22476974,2041.2,2040.2,0.041511]
[1770426684694,4.49142258,2041.2,2040.2,0.041511]
[1770426685418,0.1024,2041.1,2040.2,0.041511]
[1770426685604,1.11394664,2041.1,2040.2,0.041511]
[1770426685805,1.11394664,2041.1,2040.1,0.001]
[1770426686729,4.49154259,2041.0,2040.4,0.001]
[1770426687640,1.22488975,2041.0,2040.4,0.001]
[1770426687950,0.72383954,2040.9,2040.4,0.001]
[1770426688813,1.2250098,2040.8,2040.4,0.001]
[1770426690234,0.72383954,2040.9,2040.4,0.001]
[1770426690406,1.22483475,2041.1,2040.5,0.041511]
[1770426690606,1.22483475,2041.1,2040.5,3.83071745]
[1770426690912,1.84931629,2041.3,2040.5,5.05588889]
[1770426691937,1.84931629,2041.3,2040.5,3.83071745]
[1770426692141,5.11596913,2041.3,2040.4,0.001]
[1770426692301,3.36905284,2041.2,2040.4,0.001]
[1770426692708,0.1024,2041.2,2040.4,0.001]
[1770426693037,3.26665284,2040.4,2039.0,3.4408685]
[1770426693239,3.26665284,2040.4,2039.1,1.58297874]
[1770426693402,0.3359703,2040.5,2039.1,1.58297874]
[1770426693403,0.3359703,2040.5,2039.4,1.22585044]
[1770426693733,0.1024,2040.9,2039.7,4.70802517]
[1770426693933,0.1024,2040.9,2039.8,1.22560943]
[1770426694136,0.1024,2040.9,2039.9,0.96106666]
[1770426694521,0.1024,2040.9,2039.9,2.18661322]
[1770426694720,0.1024,2040.9,2039.9,0.96106666]
[1770426694929,1.2250098,2040.8,2039.9,0.96106666]
[1770426695127,1.2250098,2040.8,2039.7,4.70801204]
[1770426695336,1.2250098,2040.8,2039.8,1.22560659]
[1770426695633,1.2250098,2040.8,2039.7,3.4823795]
[1770426695807,1.2250098,2040.8,2039.7,4.70804923]
[1770426696004,1.2250098,2040.8,2039.8,1.22560772]
[1770426696207,0.6227449,2040.7,2039.9,0.47079872]
[1770426696935,1.2250098,2040.8,2040.0,3.32152679]
[1770426699034,4.89932875,2041.1,2040.1,1.22543012]
[1770426699333,4.89932875,2041.1,2040.0,8.22346876]
[1770426699334,4.89932875,2041.1,2040.0,1.22543927]
[1770426699924,4.89932875,2041.1,2039.9,4.97631741]
[1770426700119,4.89932875,2041.1,2040.2,0.001]
[1770426700317,1.00453644,2041.0,2040.2,0.001]
[1770426700520,3.23617242,2040.9,2040.2,0.001]
[1770426701443,1.2250098,2040.8,2040.2,0.001]
[1770426706451,3.33857242,2040.8,2040.0,0.001]
[1770426706750,3.33857242,2040.6,2040.0,0.001]
[1770426707243,3.33857242,2040.6,2039.4,3.32152679]
[1770426707621,3.33857242,2040.6,2039.4,0.041511]
[1770426708024,0.1024,2040.6,2039.7,3.32152679]
[1770426708240,0.82386116,2040.7,2039.8,3.73474137]
[1770426708440,1.22512986,2040.6,2039.8,3.73474137]
[1770426710534,1.22512986,2040.6,2039.8,0.45472558]
[1770426710761,1.22512986,2040.6,2039.7,0.041511]
[1770426711256,1.22512986,2040.6,2039.7,4.54718719]
[1770426711462,1.22512986,2040.6,2039.7,3.32152679]
[1770426712437,1.22512986,2040.6,2040.0,0.041511]
[1770426713259,1.22512986,2040.6,2039.9,0.001]
[1770426713559,0.69495105,2040.5,2039.9,0.001]
[1770426714759,1.22524995,2040.4,2039.9,0.001]
[1770426717843,3.23617242,2040.3,2039.1,3.67848251]
[1770426718444,4.27326844,2040.2,2039.1,3.67848251]
[1770426718644,4.27326844,2040.1,2039.1,0.35695572]
[1770426718868,1.46442286,2040.0,2038.9,3.40870449]
[1770426719037,1.03709602,2039.9,2038.9,3.40870449]
[1770426719370,1.22567044,2039.7,2038.9,3.40870449]
[1770426720357,1.03663132,2039.6,2038.9,3.40870449]
[1770426720551,1.22567044,2039.7,2038.9,3.40870449]
[1770426720851,1.64942531,2039.6,2038.9,4.01495699]
[1770426721175,0.61283522,2039.6,2038.9,4.01495699]
[1770426721379,1.22579063,2039.5,2038.9,0.1286887]
[1770426721553,1.0364798,2039.4,2038.9,0.1286887]
[1770426721860,1.0364798,2039.3,2038.9,0.1286887]
[1770426722043,1.0364798,2039.2,2038.4,3.43149879]
[1770426722251,1.0364798,2039.1,2038.2,3.28001579]
[1770426722553,1.03495437,2039.0,2038.2,0.041511]
[1770426722755,0.2559,2037.0,2036.0,3.28001579]
[1770426723076,9.2e-07,2036.9,2036.1,3.32800158]
[1770426723251,0.2559,2037.0,2036.0,3.32152679]
[1770426723252,0.2559,2037.0,2036.3,0.041511]
[1770426723449,1.48319599,2037.0,2036.3,1.26917106]
[1770426723780,1.48319599,2037.0,2036.3,0.041511]
[1770426723988,1.48319599,2037.0,2036.3,1.26922273]
[1770426724283,1.48320141,2037.0,2036.4,3.32152679]
[1770426724447,1.48320141,2037.0,2036.5,0.33215268]
[1770426726253,1.48320141,2037.0,2036.1,0.041511]
[1770426726655,1.48320141,2037.0,2036.4,0.041511]
[1770426727065,1.48320141,2037.0,2036.5,0.001]
[1770426727578,1.48320141,2037.0,2036.4,3.42977957]
[1770426728174,1.22730141,2037.0,2036.4,3.42977957]
[1770426728355,1.22730141,2037.0,2036.5,0.46584605]
[1770426729154,1.22730141,2037.0,2035.9,3.29587232]
[1770426729755,0.1024,2037.0,2035.9,3.29587232]
[1770426730783,0.1024,2037.0,2036.4,3.33738332]
[1770426730784,0.03138703,2037.0,2036.4,3.33738332]
[1770426730978,0.03138703,2037.0,2036.5,3.62961065]
[1770426731780,1.22735529,2036.9,2036.5,0.33373833]
[1770426731955,1.22735529,2036.9,2036.2,3.29587232]
[1770426732155,1.22735529,2036.9,2036.4,0.041511]
[1770426734054,1.35893191,2036.9,2036.4,0.041511]
[1770426734281,1.35893191,2036.9,2036.0,0.041511]
[1770426734873,1.35893191,2036.9,2036.0,3.33738332]
[1770426735073,0.32635407,2036.8,2036.2,3.29587232]
[1770426735473,0.32635407,2036.8,2036.1,0.33373833]
[1770426735870,1.22747581,2036.7,2036.1,0.33373833]
[1770426736071,1.22747581,2036.7,2036.0,0.041511]
[1770426736469,1.22747581,2036.7,2035.7,0.041511]
[1770426736764,1.22747581,2036.7,2035.9,4.5653106]
[1770426737107,1.22747581,2036.7,2036.0,3.29587232]
[1770426737903,1.22747581,2036.7,2036.2,3.33738332]
[1770426739898,5.23625734,2036.8,2036.3,3.29587232]
[1770426739899,1.50129733,2036.8,2036.3,3.29587232]
[1770426740066,1.50129733,2036.8,2036.4,3.63061065]
[1770426740268,1.50329733,2036.8,2036.4,3.63061065]
[1770426741106,1.50329733,2036.8,2036.4,0.001]
[1770426742181,1.50329733,2036.8,2036.2,0.041511]
[1770426743222,1.50329733,2036.8,2036.2,1e-08]
[1770426744015,1.50329733,2036.8,2035.9,0.041511]
[1770426745807,1.50329733,2036.8,2036.0,3.29587232]
[1770426746549,3.33938357,2036.2,2035.0,3.29587232]
[1770426746835,3.33938357,2036.5,2035.0,3.29587232]
[1770426747038,4.3639605,2036.4,2035.0,3.29587232]
[1770426747202,1.46097298,2036.3,2035.1,0.45719116]
[1770426747404,1.02457693,2036.2,2035.1,0.45719116]
[1770426747633,2.3097399,2036.2,2035.1,0.45719116]
[1770426747834,1.02457693,2036.1,2035.2,0.041511]
[1770426748035,1.22789783,2036.0,2035.2,0.041511]
[1770426748333,2.33296222,2036.0,2035.0,4.56585748]
[1770426748700,2.33296222,2036.0,2035.1,1.22841927]
[1770426748902,2.33296222,2036.0,2035.0,4.56584161]
[1770426749305,1.03095073,2035.9,2035.0,3.33738332]
[1770426749510,1.03095073,2035.8,2035.0,3.33738332]
[1770426749724,2.33296222,2036.0,2035.1,0.45719124]
[1770426749935,1.03125054,2035.9,2035.1,0.45719124]
[1770426750148,2.259269,2035.8,2035.1,0.45719124]
[1770426750309,1.22801846,2035.8,2035.1,3.75306356]
[1770426750508,1.22789783,2036.0,2035.3,3.33738332]
[1770426750725,1.03118852,2035.9,2035.4,0.33373833]
[1770426750932,1.22789783,2036.0,2035.4,0.33373833]
[1770426751232,7.06085503,2036.3,2035.6,0.041511]
[1770426751233,1.03428764,2035.9,2035.6,0.041511]
[1770426751432,6.19628083,2036.2,2035.6,0.041511]
[1770426751734,6.19628083,2036.2,2035.4,0.33373833]
[1770426751930,0.91376087,2036.1,2035.4,0.33373833]
[1770426752357,2.5130608,2036.0,2035.4,0.33373833]
[1770426752837,1.28516297,2035.9,2035.1,0.45719124]
[1770426753030,1.28516297,2035.7,2035.1,3.75306356]
[1770426753403,1.28516297,2035.7,2035.1,0.45719124]
[1770426753614,1.28516297,2035.6,2035.3,0.001]
[1770426753824,1.28516297,2035.5,2034.9,0.006]
[1770426754135,1.28516297,2035.4,2035.0,0.001]
[1770426754330,1.22832014,2035.3,2035.0,0.001]
[1770426755606,1.71355063,2035.6,2035.0,0.001]
[1770426755930,1.22795815,2035.9,2035.1,3.59057427]
[1770426756137,1.22794198,2036.0,2035.4,0.041511]
[1770426756316,4.91148966,2036.1,2035.4,3.59057427]
[1770426756513,4.91148966,2036.1,2035.4,0.041511]
[1770426757612,1.22783753,2036.2,2035.5,3.54906327]
[1770426757913,1.22783753,2036.2,2035.6,0.48188226]
[1770426758937,4.91131344,2036.3,2035.2,3.9082207]
[1770426758938,7.48163939,2036.3,2035.2,3.9082207]
[1770426759329,6.04475642,2036.1,2035.0,0.001]
[1770426759634,2.57032595,2036.0,2035.0,0.001]
[1770426759842,2.57032595,2035.9,2035.0,0.001]
[1770426760828,1.22801846,2035.8,2035.0,0.001]
[1770426761146,0.87104183,2035.7,2035.0,0.001]
[1770426762445,1.22801846,2035.8,2035.0,3.55006327]
[1770426762941,4.91207387,2036.0,2035.0,4.77852503]
[1770426763125,7.48239982,2036.0,2035.0,4.77852503]
[1770426763314,1.03501534,2035.9,2035.0,4.77852503]
[1770426763511,1.03501534,2035.8,2035.0,4.77852503]
[1770426763822,1.03501534,2035.7,2035.2,3.59057427]
[1770426764026,4.91207387,2036.0,2035.2,3.59057427]
[1770426764226,1.03583468,2035.9,2035.2,3.59057427]
[1770426764439,1.03583468,2035.8,2035.2,3.59057427]
[1770426764633,1.03583468,2035.7,2035.3,4.0055229]
[1770426764834,1.22789783,2036.0,2035.3,4.0055229]
[1770426765144,1.03647358,2035.9,2035.3,5.23380483]
[1770426765332,1.03647358,2035.8,2035.3,0.45645963]
[1770426765535,1.03647358,2035.7,2035.3,0.45645963]
[1770426765731,1.03677779,2035.6,2035.1,0.97402205]
[1770426765932,1.22797667,2035.9,2035.0,3.55006327]
[1770426766132,1.03697867,2035.8,2035.1,3.54906327]
[1770426766332,1.03697867,2035.8,2035.0,1.22946683]
[1770426766333,1.03697867,2035.7,2035.0,0.001]
[1770426766524,1.03697867,2035.6,2035.1,3.54906327]
[1770426766727,1.03697867,2035.5,2035.1,1.22842296]
[1770426766931,1.22797667,2035.9,2035.5,0.001]
[1770426767135,1.03767167,2035.8,2035.1,1.22842296]
[1770426767339,1.03767167,2035.7,2035.1,4.77748623]
[1770426767619,1.22997667,2035.9,2035.1,4.77748623]
[1770426767620,1.03767167,2035.6,2035.3,0.001]
[1770426767816,1.22997667,2035.9,2035.3,0.001]
[1770426768018,1.03842026,2035.8,2035.3,0.001]
[1770426768216,1.03842026,2035.7,2035.3,0.001]
[1770426768417,1.03842026,2035.6,2035.3,0.001]
[1770426768641,2.59257345,2035.9,2035.3,0.001]
[1770426768642,1.03842026,2035.5,2035.3,0.001]
[1770426768826,1.22997667,2035.9,2035.3,0.001]
[1770426769025,1.22807879,2035.7,2035.3,0.001]
[1770426769337,1.03905665,2035.6,2035.3,0.001]
[1770426769528,1.03905665,2035.5,2035.3,0.001]
[1770426769847,1.03905665,2035.4,2035.3,0.001]
[1770426770049,1.22806194,2035.8,2035.3,0.001]
[1770426770239,1.03971939,2035.7,2035.3,0.001]
[1770426770438,1.03971939,2035.6,2035.3,0.001]
[1770426770639,3.47443047,2035.4,2034.7,0.1286887]
[1770426770817,2.59968477,2035.2,2034.3,4.9155857]
[1770426771017,1.03971939,2035.1,2034.2,4.91582663]
[1770426771220,2.26822061,2035.0,2034.1,4.77809032]
[1770426771453,2.26822061,2035.0,2034.0,0.0079]
[1770426771454,1.03971939,2034.9,2034.0,0.0079]
[1770426771763,1.03971939,2034.8,2034.0,0.0079]
[1770426771921,1.03971939,2034.7,2034.0,0.0079]
[1770426772126,1.03971939,2034.6,2034.0,0.0079]
[1770426772323,1.03971939,2034.5,2034.0,0.0079]
[1770426772527,1.03971939,2034.4,2034.0,0.0079]
[1770426772862,1.03971939,2034.3,2034.0,0.0079]
[1770426773037,1.22850122,2035.0,2034.0,0.0079]
[1770426773246,1.99803945,2034.9,2034.0,0.0079]
[1770426773548,1.03718922,2034.8,2034.0,0.0079]
[1770426773754,1.03718922,2034.7,2034.0,0.0079]
[1770426773947,1.03718922,2034.6,2034.0,0.0079]
[1770426774154,1.03718922,2034.5,2034.0,0.0109]
[1770426774348,1.03718922,2034.4,2034.1,3.54906327]
[1770426774559,1.22850122,2035.0,2034.2,0.47890527]
[1770426774872,1.03696615,2034.9,2034.2,0.47890527]
[1770426775044,1.03696615,2034.8,2034.2,0.47890527]
[1770426775247,1.03696615,2034.7,2034.2,0.47890527]
[1770426775560,1.22860798,2034.9,2034.2,5.2569198]
[1770426775768,1.0371785,2034.8,2034.3,1.01729323]
[1770426775960,1.0371785,2034.7,2034.3,1.01729323]
[1770426776170,1.22860798,2034.9,2034.2,5.25694664]
[1770426776368,1.03734139,2034.8,2034.2,5.25694664]
[1770426776671,1.03734139,2034.7,2034.0,0.0109]
[1770426776871,1.03734139,2034.6,2034.0,1.24000443]
[1770426777177,1.03734139,2034.5,2034.1,1.22901381]
[1770426777376,1.22874823,2034.6,2034.0,1.23996366]
[1770426777581,1.03684913,2034.5,2034.1,0.97056]
[1770426777879,1.22874823,2034.6,2034.1,0.97056]
[1770426779369,3.47443047,2035.1,2034.1,0.97056]
[1770426779567,1.03615441,2035.0,2034.1,5.74864562]
[1770426779783,1.03615441,2034.9,2034.2,1.06757248]
[1770426779969,1.2283805,2035.2,2034.2,1.06757248]
[1770426779970,1.03615441,2034.8,2034.2,1.06757248]
[1770426780140,1.03615441,2034.7,2034.2,1.06757248]
[1770426780344,1.2283805,2035.2,2034.2,4.61663575]
[1770426780540,1.03611912,2035.1,2034.2,4.61663575]
[1770426780745,1.03611912,2035.0,2034.3,0.58456581]
[1770426780946,0.002,2034.7,2034.3,0.58456581]
[1770426781379,0.002,2034.7,2034.4,1.22886354]
[1770426781991,0.002,2034.7,2034.4,3.54906327]
[1770426782198,1.94628511,2035.7,2034.4,3.59057427]
[1770426782483,1.03573713,2035.6,2034.9,3.54906327]
[1770426782650,1.23000248,2035.9,2034.9,3.54906327]
[1770426782845,1.03593578,2035.8,2034.9,3.54906327]
[1770426783073,1.03593578,2035.7,2035.1,3.54906327]
[1770426783377,0.002,2035.9,2035.3,3.54906327]
[1770426783603,0.002,2035.9,2035.4,4.02680765]
[1770426784581,0.002,2036.1,2035.7,3.54906327]
[1770426785171,0.002,2036.1,2035.9,3.59057427]
[1770426785377,0.002,2036.6,2036.0,4.7769611]
[1770426785575,0.002,2036.6,2036.1,3.54906327]
[1770426785780,1.03601776,2036.5,2035.9,1.22412049]
[1770426785996,0.002,2036.6,2036.0,3.23599473]
[1770426787487,0.002,2036.6,2036.2,3.23599473]
[1770426787773,0.002,2036.6,2036.2,3.73599473]
[1770426788174,0.002,2036.6,2036.2,0.5]
[1770426788394,0.002,2036.6,2036.2,1.16391877]
[1770426789393,0.002,2036.6,2036.2,2.39165246]
[1770426789782,0.002,2036.6,2036.2,5.79064996]
[1770426790899,0.002,2036.6,2036.3,3.3989975]
[1770426791083,0.002,2036.8,2036.3,3.3989975]
[1770426791278,0.002,2036.8,2036.4,0.5832161]
[1770426791470,0.002,2036.8,2036.5,1.22759636]
[1770426792316,0.002,2036.8,2036.4,0.5832161]
[1770426792487,0.002,2036.8,2036.4,1.81087083]
[1770426792886,0.002,2036.8,2036.4,5.20986833]
[1770426793089,0.002,2036.8,2036.5,1.01205984]
[1770426793298,0.002,2036.8,2036.5,4.41105734]
[1770426793506,0.002,2036.8,2036.6,1.22753608]
[1770426795106,0.002,2036.8,2036.6,4.62653358]
[1770426795903,0.002,2036.8,2036.6,4.62273358]
[1770426796131,0.002,2036.8,2036.7,1.05450362]
[1770426798334,0.002,2036.8,2036.7,2.28197943]
[1770426800033,0.002,2036.8,2036.4,0.5832161]
[1770426800238,0.002,2036.8,2036.2,8.31005536]
[1770426800239,0.002,2036.8,2036.2,1.22777587]
[1770426800810,0.002,2036.8,2036.3,1.22771562]
[1770426801332,0.002,2036.8,2036.3,1.81093172]
[1770426801714,0.002,2036.8,2036.4,1.22765411]
[1770426802355,0.002,2036.8,2036.4,4.62665161]
[1770426802514,0.002,2036.8,2036.5,1.0120723]
[1770426803133,0.002,2036.8,2036.6,0.5832161]
[1770426804443,0.002,2036.8,2036.6,1.81072697]
[1770426804615,0.002,2036.8,2036.6,0.5832161]
[1770426804938,0.002,2036.8,2036.6,1.8107386]
[1770426805239,0.002,2036.8,2036.6,1.69643533]
[1770426806342,0.002,2036.8,2036.3,1.22771264]
[1770426806739,0.002,2036.8,2036.4,0.5832161]
[1770426807832,0.002,2036.8,2036.6,0.001]
[1770426808048,0.002,2036.8,2036.1,0.001]
[1770426808049,3.23182535,2036.8,2036.1,0.001]
[1770426808223,1.03680577,2036.7,2036.4,0.001]
[1770426808423,3.55500789,2036.8,2036.4,0.001]
[1770426808624,2.26427436,2036.7,2036.4,0.001]
[1770426808824,1.22747581,2036.7,2036.4,0.001]
[1770426809437,1.03864748,2036.6,2036.4,0.001]
[1770426809618,1.22747581,2036.7,2036.4,0.001]
[1770426809819,1.03879683,2036.6,2036.4,0.001]
[1770426810118,2.68766393,2036.7,2036.4,0.001]
[1770426810318,1.03878887,2036.6,2036.4,0.001]
[1770426810521,1.03878887,2036.5,2036.4,0.001]
[1770426811117,2.26641732,2036.5,2036.1,0.001]
[1770426811342,1.03878887,2036.4,2036.1,0.5252161]
[1770426811519,1.22762845,2036.5,2036.1,0.5252161]
[1770426811724,1.03997219,2036.4,2036.1,0.5252161]
[1770426811921,1.22942708,2036.8,2036.2,0.5242161]
[1770426812129,1.03994941,2036.7,2036.2,0.91663746]
[1770426812335,1.03994941,2036.6,2036.2,0.91663746]
[1770426812535,1.03994941,2036.5,2036.2,0.91663746]
[1770426812720,1.22941826,2036.8,2036.2,0.91663746]
[1770426813053,1.04168189,2036.7,2036.2,0.91663746]
[1770426813341,1.04168189,2036.6,2036.2,2.1443856]
[1770426813530,1.04168189,2036.5,2036.2,0.5242161]
[1770426813734,1.04168189,2036.4,2036.2,0.5242161]
[1770426813939,1.04168189,2036.3,2036.2,0.5242161]
[1770426814242,1.04168189,2036.3,2036.1,0.001]
[1770426814439,1.22755885,2036.6,2036.1,0.001]
[1770426814440,1.04168189,2036.2,2036.1,0.001]
[1770426815130,1.22946206,2036.8,2036.2,1.227769]
[1770426815334,1.22946206,2036.8,2036.1,1.84297863]
[1770426815543,0.002,2036.8,2036.1,1.84296208]
[1770426815841,0.002,2036.8,2036.1,0.61517193]
[1770426816443,0.002,2036.8,2036.1,1.8430035]
[1770426816939,0.002,2036.8,2036.1,0.61517193]
[1770426817643,3.47845058,2036.3,2035.0,0.001]
[1770426817842,6.81926896,2036.2,2035.1,1.22841156]
[1770426818049,0.6819269,2036.1,2035.2,0.61433966]
[1770426818219,7.50119586,2036.1,2035.2,0.61433966]
[1770426818417,7.50119586,2036.1,2035.1,0.001]
[1770426818920,4.02274528,2036.1,2035.1,1.22943343]
[1770426819120,0.6819269,2036.1,2035.1,1.22943343]
[1770426819525,1.22789783,2036.0,2035.1,0.001]
[1770426820235,1.22789783,2036.0,2035.0,4.91496021]
[1770426820546,1.22789783,2036.0,2035.1,0.9476175]
[1770426821345,1.22789783,2036.0,2035.2,0.001]
[1770426821866,1.22789783,2036.0,2035.3,0.001]
[1770426822661,1.90980517,2036.1,2035.3,0.001]
[1770426822866,1.22787827,2036.1,2035.3,4.36505206]
[1770426823157,1.22787827,2036.1,2035.4,3.32271359]
[1770426823956,1.32999636,2036.5,2035.4,4.55094853]
[1770426824136,1.32999636,2036.5,2035.5,0.001]
[1770426824331,1.22759636,2036.5,2035.5,0.001]
[1770426824558,0.96182413,2036.4,2035.5,1.05165655]
[1770426824763,3.34081838,2036.3,2035.5,0.001]
[1770426824964,0.96182413,2036.4,2035.5,0.001]
[1770426825172,0.96182413,2036.4,2035.5,3.32371359]
[1770426825372,1.22759636,2036.5,2035.5,3.32371359]
[1770426826040,1.22714296,2037.3,2036.2,3.32271359]
[1770426826384,1.22714296,2037.3,2035.9,3.32271359]
[1770426826385,3.34081838,2037.2,2035.9,3.32271359]
[1770426826533,1.84068587,2037.3,2036.1,3.36422459]
[1770426827072,1.84068587,2037.3,2036.2,0.001]
[1770426827277,1.84068587,2037.3,2036.3,3.32271359]
[1770426827495,5.18150425,2037.3,2036.2,0.001]
[1770426827779,3.34081838,2037.1,2036.2,0.001]
[1770426828088,4.56811342,2037.0,2036.2,0.001]
[1770426828253,3.34081838,2036.9,2036.2,0.001]
[1770426828573,3.34081838,2036.9,2035.8,1.22801428]
[1770426828745,3.34081838,2036.9,2035.7,4.5507891]
[1770426828947,0.45681134,2036.8,2035.8,0.45507891]
[1770426830185,1.22747581,2036.7,2035.8,0.45507891]
[1770426830384,1.22747581,2036.7,2035.7,3.32271359]
[1770426830582,1.22747581,2036.7,2035.7,1.22807173]
[1770426830793,1.22747581,2036.7,2035.8,1.22801708]
[1770426831173,1.22747581,2036.7,2035.7,1.22803264]
[1770426831475,1.22747581,2036.7,2035.8,1.22801416]
[1770426831681,0.65941904,2036.6,2035.8,2.17434147]
[1770426833066,1.22759636,2036.5,2035.8,2.17433473]